Workbook

Sheet Proposed Pricing schedule
A1: Bidders must provide the NHLS with the total Bid price inclusive vat for a period of 5 years.
A2: Terms and Conditions of pricing are as follows:
A3: a) Bidder must complete the pricing as per tables below.
A4: b) Prices must be provided in South African Rand (R).
A5: c) Line Prices are all VAT EXCLUSIVE and TOTAL PRICE is VAT INCLUSIVE.
A6: d) Bidder to ensure that the Prices listed below are included on the Total Declared Price.
A7: e) Bidders who fail to price according to the costing template provided will be disqualified.
A8: f) NHLS shall not be bound by the quantities indicated below, as the contract is for the procurement of consumables on an as-and-when-required basis
A11: PRICING SCHEDULE SECTION A: GROSSING STATIONS
A13: Item Description | C13: Quantity Year 1 | D13: Monthly Rate | E13: Total Cost | F13: Quantity Year 2 | G13: Monthly Rate | H13: Total Cost | I13: Quantity Year 3 | J13: Monthly Unit Rate | K13: Total Cost | L13: Quantity Year 4 | M13: Monthly Rate | N13: Total Cost | O13: Quantity Year 5 | P13: Monthly Rate | Q13: Total Cost | R13: Total Annual Cost
B14: Unit of measure | D14: in | E14: Year 1 | G14: in | H14: Year 2 | J14: in | K14: Year 3 | M14: in | N14: Year 4 | P14: Year 5 | Q14: Year 5 | R14: Year 1 - 5
D15: Year 1 | E15: (VAT Excl.) | G15: Year 2 | H15: (VAT Excl.) | J15: Year 3 | K15: (VAT Excl.) | M15: Year 4 | N15: (VAT Excl.) | P15: in | Q15: (VAT Excl.) | R15: (VAT Excl.)
D16: (VAT Excl.) | G16: (VAT Excl.) | J16: (VAT Excl.) | M16: (VAT Excl.) | P16: (VAT Excl.)
A17: Grosing Stations Placement | B17: Monthly | C17: 2 | E17: R | F17: 2 | H17: R | I17: 2 | K17: R | L17: 2 | N17: R | O17: 2 | Q17: R | R17: R
Q18: Subtotal (VAT Excl.) | R18: R
Q19: Vat | R19: R
Q20: Total ( Vat Incl) | R20: R
A24: Pricing Schedule B: Service and Maintenance Costs as the manufacturer’s instructions (x2 instruments)
A25: Item Description | D25: Estimated Year 1 | E25: Unit Rate | F25: Total Cost | G25: Estimated Year 2 | H25: Unit Rate | I25: Total Cost | J25: Estimated Year 3 | K25: Unit Rate | L25: Total Cost | M25: Estimated Year 4 | N25: Unit Rate | O25: Total Cost | P25: Estimated Year 5 | Q25: Unit Rate | R25: Total Cost | S25: Total Annual Cost
E26: in | F26: Year 1 | H26: in | I26: Year 2 | K26: in | L26: Year 3 | N26: in | O26: Year 4 | Q26: Year 5 | R26: Year 5 | S26: Year 1 - 5
B27: Unit of measure | C27: Number of Station | E27: Year 1 | F27: (VAT Excl.) | H27: Year 2 | I27: (VAT Excl.) | K27: Year 3 | L27: (VAT Excl.) | N27: Year 4 | O27: (VAT Excl.) | Q27: in | R27: (VAT Excl.) | S27: (VAT Excl.)
E28: (VAT Excl.) | H28: (VAT Excl.) | K28: (VAT Excl.) | N28: (VAT Excl.) | Q28: (VAT Excl.)
A29: Service and Maintanace | B29: Per Station | C29: 2 | F29: R | I29: R | L29: R | O29: R | R29: R
R30: Subtotal (VAT Excl.) | S30: R
R31: Vat | S31: R
R32: Total ( Vat Incl) | S32: R
A35: Pricing Schedule C:(Carbon Filters)
B36: Estimated Quantity per Year | D36: Estimated Year 1 | E36: Unit Rate | F36: Total Cost | G36: Estimated Year 2 | H36: Unit Rate | I36: Total Cost | J36: Estimated Year 3 | K36: Unit Rate | L36: Total Cost | M36: Estimated Year 4 | N36: Unit Rate | O36: Total Cost | P36: Estimated Year 5 | Q36: Unit Rate | R36: Total Cost | S36: Total Annual Cost
E37: in | F37: Year 1 | H37: in | I37: Year 2 | K37: in | L37: Year 3 | N37: in | O37: Year 4 | Q37: Year 5 | R37: Year 5 | S37: Year 1 - 5
A38: Item Description | C38: Unit of measure | E38: Year 1 | F38: (VAT Excl.) | H38: Year 2 | I38: (VAT Excl.) | K38: Year 3 | L38: (VAT Excl.) | N38: Year 4 | O38: (VAT Excl.) | Q38: in | R38: (VAT Excl.) | S38: (VAT Excl.)
E39: (VAT Excl.) | H39: (VAT Excl.) | K39: (VAT Excl.) | N39: (VAT Excl.) | Q39: (VAT Excl.)
A40: Active Carbon Filter Cartridge formalin and neutralise | B40: 6 times yearly | C40: Each | F40: R | I40: R | L40: R | O40: R | R40: R | S40: R
A41: Pre-filter | B41: 6 times yearly | C41: Each | F41: R | I41: R | L41: R | O41: R | R41: R | S41: R
R43: Subtotal (VAT Excl.) | S43: R
R44: Vat | S44: R
R45: Subtotal (VAT Incl.) | S45: R
A46: Pricing Schedule D: TRAINING
A47: Item Description | C47: Estimated Officials Year 1 | D47: Unit Rate | E47: Total Cost | F47: Estimated OfficialsYear 2 | G47: Unit Rate | H47: Total Cost | I47: Estimated OfficialsYear 3 | J47: Unit Rate | K47: Total Cost | L47: Estimated Officials Year 4 | M47: Unit Rate | N47: Total Cost | O47: Estimated Officials Year 5 | P47: Unit Rate | Q47: Total Cost | R47: Total Annual Cost
D48: in | E48: Year 1 | G48: in | H48: Year 2 | J48: in | K48: Year 3 | M48: in | N48: Year 4 | P48: Year 5 | Q48: Year 5 | R48: Year 1 - 5
B49: Unit of measure | D49: Year 1 | E49: (VAT Excl.) | G49: Year 2 | H49: (VAT Excl.) | J49: Year 3 | K49: (VAT Excl.) | M49: Year 4 | N49: (VAT Excl.) | P49: in | Q49: (VAT Excl.) | R49: (VAT Excl.)
D50: (VAT Excl.) | G50: (VAT Excl.) | J50: (VAT Excl.) | M50: (VAT Excl.) | P50: (VAT Excl.)
A51: Initial Operator Training | B51: Per delegate | C51: 20 | E51: R | F51: 10 | H51: R | I51: 10 | K51: R | L51: 10 | N51: R | O51: 10 | Q51: R | R51: R
A53: Subtotal (VAT Excl.) | R53: R
A54: VAT (15%) | R54: R
Q55: Subtotal (VAT Incl.) | R55: R
A56: Pricing Schedule E: Cleaning Reagents (For the period of 5 years) Quote as per the below estimated quantities
A57: Reagent Description | B57: Material Number | C57: Unit of Measure | D57: Estimated quantities | E57: Unit Price (VAT excl.) | F57: Total Price Excl. VAT) | G57: Total Price (VAT Incl.)
A58: Stainless steel cleaner / polish – 250 ml | C58: Each | D58: 120 bottles | E58: R | F58: R
A59: Enzymatic cleaning and disinfecting reagent 10 L | C59: Litre | D59: 1200 L | E59: R | F59: R
A60: Formaldehyde neutralizer – ammonia based or aldehyde neutralizing solution 5 L | C60: Litre | D60: 600 L | E60: R | F60: R
A63: Summary of the pricing scehdule | C63: Bid Amount
A64: Pricing Schedule A | B64: Grosing Stations Placement | C64: R
A65: Pricing Schedule B | B65: Service and Maintenance Costs | C65: R
A66: Pricing Schedule C | B66: Carbon Filters | C66: R
A67: Pricing Schedule D | B67: Training | C67: R
A68: Pricing Schedule E | B68: Reagents | C68: R
A69: Total Bid Offer for 5 years (All inclusive) | C69: R

Sheet Sheet2 (hidden)
A5: 974513 | B5: 81209 | C5: =+B5*12 -> 974508
E6: 17.69 | L6: 90.94 | M6: 938 | N6: =+M6*L6 -> 85301.72
E7: 10.88 | M7: 12
E8: 62.37 | M8: =+M6*M7 -> 11256
E9: =SUM(E6:E8) -> 90.94 | F9: 938 | G9: =+F9*E9 -> 85301.72 | H9: 12 | I9: =+G9*H9 -> 1023620.64 | M9: 5
G10: =+B5 -> 81209 | M10: =+M8*M9 -> 56280
G11: =+G10-G9 -> -4092.72 | H11: 12 | I11: =+G11*H11 -> -49112.64 | M11: =+M10*E9 -> 5118103.2 | N11: 5122360 | O11: =+N11-M11 -> 4256.8 | P11: =+O11/N11 -> 0.0008310232002
R12: =4092*2.5% -> 102.3
N13: 938 | R13: 4092
C14: 974513 | D14: 998876 | E14: =+D14-C14 -> 24363 | F14: =+E14/C14 -> 0.03 | N14: 60 | R14: =+R13+R12 -> 4194.3
N15: =+N14*N13 -> 56280 | O15: 56330
C16: 1023848 | D16: =+D14 -> 998876 | E16: =+D16-C16 -> -24972 | F16: =+E16/C16 -> (0.02) | N16: =+N15-O15 -> -50
K17: 2.50%
C18: 974513 | E18: =+C18 -> 974513 | G18: 81209 | J18: =+G18 -> 81209 | K18: =+J18*$K$17 -> 2030.225 | L18: =+K18+J18 -> 83239.225
B19: =+C18/C19-1 -> -2% | C19: 998876 | D19: =+C19/C18 -> 1.02500018 | F19: =+G18/G19-1 -> -2% | G19: 83240 | H19: =+G19/G18 -> 102.5% | J19: =+G19 -> 83240 | K19: =+J19*$K$17 -> 2081 | L19: =+K19+J19 -> 85321 | P19: 938 | Q19: 12 | R19: =+Q19*P19 -> 11256 | S19: 5 | T19: =+R19*S19 -> 56280
B20: =+C19/C20-1 -> -2% | C20: 1023848 | D20: =+C20/C19 -> 1.0250001 | F20: =+G19/G20-1 -> -2% | G20: 85321 | H20: =+G20/G19 -> 102.5% | J20: =+G20 -> 85321 | K20: =+J20*$K$17 -> 2133.025 | L20: =+K20+J20 -> 87454.025
B21: =+C20/C21-1 -> -2% | C21: 1049444 | D21: =+C21/C20 -> 1.024999805 | F21: =+G20/G21-1 -> -2% | G21: 87454 | H21: =+G21/G20 -> 102.5% | J21: =+G21 -> 87454 | K21: =+J21*$K$17 -> 2186.35 | L21: =+K21+J21 -> 89640.35
B22: =+C21/C22-1 -> -2% | C22: 1075680 | D22: =+C22/C21 -> 1.024999905 | F22: =+G21/G22-1 -> -2% | G22: 89640 | H22: =+G22/G21 -> 102.5% | J22: =+G22 -> 89640 | K22: =+J22*$K$17 -> 2241 | L22: =+K22+J22 -> 91881
C24: =+J18 -> 81209 | D24: =+C24/$E$9 -> 892.9953816
C25: =+J19 -> 83240 | D25: =+C25/$E$9 -> 915.3287882 | E25: =+D25/D24 -> 1.025009543
C26: =+J20 -> 85321 | D26: =+C26/$E$9 -> 938.2120079 | E26: =+D26/D25 -> 1.025
C27: =+J21 -> 87454 | D27: =+C27/$E$9 -> 961.6670332 | E27: =+D27/D26 -> 1.024999707
C28: =+J22 -> 89640 | D28: =+C28/$E$9 -> 985.7048603 | E28: =+D28/D27 -> 1.024995998
